bitfinex/quotes_SOLUSD_20251208
["timestamp","ask_amount","ask_price","bid_price","bid_amount"]
[1765203091153,0.66,138.77,138.73,16.308864]
[1765203092166,7.20523409,138.79,138.74,18.84451595]
[1765203092369,0.66,138.78,138.74,8.80994492]
[1765203092560,0.66,138.78,138.74,18.84451595]
[1765203092762,7.86573528,138.78,138.74,17.24225493]
[1765203093072,0.66,138.78,138.74,17.24225493]
[1765203093770,17.899243,138.8,138.74,17.24225493]
[1765203093973,0.66,138.79,138.74,17.24225493]
[1765203094780,7.8651979,138.79,138.74,17.24225493]
[1765203095478,10.69457103,138.78,138.73,45.1503488]
[1765203095779,10.69457103,138.78,138.72,7.9]
[1765203096078,0.66,138.77,138.71,45.84795098]
[1765203096281,0.66,138.77,138.72,10.03457103]
[1765203096579,7.86635714,138.77,138.73,7.20814798]
[1765203097181,7.86635714,138.77,138.72,17.24324669]
[1765203097364,0.66,138.76,138.72,7.20867566]
[1765203098679,7.86682286,138.76,138.72,7.20867566]
[1765203099078,0.66,138.75,138.71,33.55263163]
[1765203099476,0.66,138.75,138.71,43.58720266]
[1765203099884,0.66,138.75,138.72,10.03457103]
[1765203100595,0.66,138.75,138.72,17.24311955]
[1765203100882,0.66,138.75,138.72,7.20854852]
[1765203102082,7.86726788,138.75,138.71,7.20917301]
[1765203102759,0.66,138.78,138.73,6.00598373]
[1765203102959,0.66,138.78,138.72,8.80994492]
[1765203102960,0.66,138.78,138.74,6.00598373]
[1765203103385,6.66598373,138.78,138.72,6.00598373]
[1765203103584,6.00598373,138.77,138.71,13.21515674]
[1765203103767,6.00598373,138.77,138.7,21.63799632]
[1765203103768,6.00598373,138.72,138.7,21.63799632]
[1765203103970,13.90598373,138.71,138.64,6.00598373]
[1765203104178,15.10980533,138.7,138.64,13.21855209]
[1765203104495,21.77578906,138.7,138.64,13.21855209]
[1765203104671,0.66,138.69,138.64,13.21855209]
[1765203104985,0.66,138.69,138.64,7.21256836]
[1765203106592,8.56,138.69,138.64,7.21256836]
[1765203106959,14.56598373,138.69,138.64,7.21256836]
[1765203107162,0.66,138.68,138.64,7.21256836]
[1765203108095,0.66,138.68,138.64,13.21855209]
[1765203108275,0.66,138.68,138.64,7.21256836]
[1765203108715,7.9,138.7,138.65,8.80994492]
[1765203108880,6.00598373,138.68,138.64,7.21256836]
[1765203109490,0.66,138.67,138.64,7.21256836]
[1765203110676,6.66598373,138.67,138.64,7.21256836]
[1765203113202,0.66,138.67,138.64,7.21256836]
[1765203115989,14.56598373,138.67,138.64,7.21256836]
[1765203116383,0.68,138.66,138.63,7.21335854]
[1765203116590,6.68598373,138.71,138.64,14.81592865]
[1765203116794,7.9,138.7,138.64,14.81592865]
[1765203117004,8.58,138.7,138.64,14.81592865]
[1765203117321,0.68,138.69,138.64,14.81592865]
[1765203117813,0.68,138.69,138.65,7.21240533]
[1765203117998,0.68,138.69,138.65,25.24341867]
[1765203119206,0.68,138.69,138.67,0.343281]
[1765203120052,0.68,138.72,138.68,6.00598373]
[1765203120327,0.68,138.74,138.7,6.00598373]
[1765203120914,15.10672521,138.76,138.7,6.00598373]
[1765203121219,0.68,138.77,138.72,6.00598373]
[1765203121409,6.68598373,138.77,138.72,8.80994492]
[1765203121609,6.68598373,138.77,138.71,7.9]
[1765203121933,0.68,138.76,138.71,8.80994492]
[1765203122104,7.88677275,138.76,138.72,7.20876585]
[1765203122514,0.68,138.75,138.72,7.20876585]
[1765203130324,0.68,138.75,138.72,31.23666422]
[1765203130524,0.67,138.77,138.73,6.00598373]
[1765203130729,0.67,138.77,138.73,2.30540008]
[1765203131840,7.87626365,138.77,138.72,27.53608057]
[1765203132713,0.67,138.76,138.72,27.53608057]
[1765203133538,10.18229264,138.76,138.71,69.10920549]
[1765203134038,0.67,138.75,138.71,69.10920549]
[1765203134339,2.97540008,138.75,138.71,61.9]
[1765203134725,0.67,138.74,138.71,61.9]
[1765203137151,0.326967,138.74,138.71,69.10916408]
[1765203137335,7.20749184,138.75,138.71,69.10916408]
[1765203137732,7.20749184,138.75,138.71,7.20916408]
[1765203138239,7.9,138.74,138.71,7.20916408]
[1765203139252,0.67,138.73,138.71,7.20916408]
[1765203140469,0.67,138.73,138.7,7.20980533]
[1765203142264,0.67,138.73,138.69,16.0202701]
[1765203142441,0.67,138.73,138.69,16.3702701]
[1765203144237,0.67,138.73,138.69,16.0202701]
[1765203144557,16.308864,138.75,138.7,2.30540008]
[1765203144734,17.008864,138.75,138.7,2.65540008]
[1765203145349,0.7,138.74,138.7,2.65540008]
[1765203146232,0.7,138.74,138.71,7.20928555]
[1765203147466,0.7,138.76,138.71,27.88789952]
[1765203147641,0.7,138.75,138.71,27.88789952]
[1765203149739,0.7,138.75,138.71,25.23249944]
[1765203152179,7.9072121,138.75,138.71,25.23249944]
[1765203152377,0.7,138.74,138.71,25.23249944]
[1765203153268,0.7,138.74,138.71,25.58249944]
[1765203155173,7.20689077,138.76,138.71,25.58249944]
[1765203155478,0.7,138.75,138.71,27.53789952]
[1765203155680,0.7,138.75,138.71,25.23249944]
[1765203157258,0.7,138.75,138.71,25.58249944]
[1765203158385,0.7,138.75,138.71,27.88789952]
[1765203159063,0.7,138.75,138.71,25.58249944]
[1765203160058,0.7,138.75,138.71,27.88789952]
[1765203162084,18.01462636,138.78,138.73,2.30540008]
[1765203162085,0.7,138.78,138.73,2.30540008]
[1765203162593,0.7,138.77,138.73,2.65540008]
[1765203162885,0.7,138.77,138.73,2.30540008]
[1765203163186,0.7,138.77,138.74,2.30540008]
[1765203163372,0.7,138.77,138.74,2.65540008]
[1765203163886,0.7,138.77,138.74,2.30540008]
[1765203164187,0.7,138.77,138.74,9.51279036]
[1765203164689,0.7,138.77,138.74,10.80936625]
[1765203166066,0.7,138.77,138.74,7.20739028]
[1765203166586,0.7,138.77,138.74,10.80936625]
[1765203173713,0.7,138.77,138.74,28.82868295]
[1765203174092,0.7,138.77,138.75,3.60197597]
[1765203174690,0.7,138.77,138.74,10.80936625]
[1765203174895,4.30197597,138.77,138.73,7.20821202]
[1765203175397,0.68,138.76,138.73,7.20821202]
[1765203176131,0.68,138.76,138.72,28.83224805]
[1765203177195,0.68,138.76,138.73,3.60197597]
[1765203178213,0.68,138.76,138.74,7.20772668]
[1765203179920,0.68,138.76,138.73,7.20824623]
[1765203181226,11.48901434,138.76,138.71,11.04341954]
[1765203181528,3.60197597,138.75,138.7,18.02420862]
[1765203181728,4.30197597,138.75,138.69,7.9]
[1765203182034,11.51005883,138.74,138.69,7.21032518]
[1765203182416,0.7,138.73,138.69,7.21032518]
[1765203183913,7.9082877,138.73,138.7,10.81005883]
[1765203184412,0.7,138.72,138.7,10.81005883]
[1765203185034,0.7,138.72,138.7,18.01977303]
[1765203187204,0.7,138.72,138.7,7.2097142]
[1765203187401,0.7,138.72,138.7,28.83701499]
[1765203193916,0.7,138.72,138.7,7.2097142]
[1765203195810,0.7,138.72,138.69,25.23565]
[1765203196012,0.7,138.72,138.7,7.20826163]
[1765203196834,0.7,138.72,138.69,7.21032518]
[1765203197039,0.7,138.72,138.69,27.47116515]
[1765203197845,7.90882337,138.72,138.69,27.47116515]
[1765203198137,7.90882337,138.72,138.64,52.69492875]
[1765203198138,4.30197597,138.72,138.65,83.69309837]
[1765203198332,4.30197597,138.71,138.67,21.64580251]
[1765203198529,4.30197597,138.71,138.65,7.21207501]
[1765203198530,3.60197597,138.69,138.65,7.21207501]
[1765203198926,0.7,138.68,138.64,23.52156714]
[1765203199126,4.30197597,138.68,138.64,7.21270314]
[1765203199446,20.61083997,138.68,138.64,7.21270314]
[1765203199645,0.7,138.67,138.64,7.21270314]
[1765203201341,7.91147337,138.67,138.64,7.21270314]
[1765203201648,11.51344934,138.67,138.63,7.21322833]
[1765203201819,0.68,138.66,138.62,7.21362067]
[1765203202022,0.68,138.66,138.63,7.2134174]
[1765203204343,7.8919012,138.66,138.63,7.2134174]
[1765203204648,7.8919012,138.66,138.62,15.12525061]
[1765203204853,0.68,138.65,138.62,15.12525061]
[1765203207856,7.89252824,138.65,138.61,7.21427273]
[1765203208233,0.68,138.64,138.61,14.42617393]
[1765203208433,0.68,138.64,138.61,7.21427273]
[1765203208842,11.49523893,138.64,138.6,7.21252824]
[1765203209041,11.49523893,138.64,138.58,18.03965498]
[1765203209042,0.68,138.63,138.58,21.64163095]
[1765203209243,0.68,138.63,138.59,18.03050101]
[1765203209738,4.28197597,138.63,138.58,7.21592983]
[1765203210140,0.68,138.62,138.58,18.03116876]
[1765203210343,0.68,138.62,138.59,7.21540601]
[1765203211556,7.89402091,138.62,138.59,7.21540601]
[1765203212136,0.68,138.61,138.59,7.21540601]
[1765203212948,0.68,138.61,138.59,7.14368929]
[1765203213261,0.68,138.61,138.58,18.03111642]
[1765203213443,7.89472404,138.61,138.57,69.31643728]
[1765203213853,0.68,138.6,138.57,76.53043867]
[1765203214056,0.68,138.6,138.57,14.63043867]
[1765203214259,0.68,138.6,138.58,7.21595805]
[1765203214652,0.68,138.62,138.58,11.16793402]
[1765203214956,0.68,138.62,138.58,43.29878933]
[1765203215143,0.68,138.62,138.59,3.60197597]
[1765203215860,0.68,138.62,138.58,43.29878933]
[1765203216362,0.68,138.62,138.58,29.20805524]
[1765203216668,0.68,138.62,138.59,21.65830415]
[1765203216861,0.68,138.62,138.58,29.20805524]
[1765203217161,0.68,138.62,138.58,50.51635939]
[1765203217363,0.68,138.62,138.58,50.86635939]
[1765203217541,0.68,138.62,138.58,50.51635939]
[1765203219162,7.89398337,138.62,138.58,28.8742622]
[1765203219362,7.89398337,138.62,138.58,7.21595805]
[1765203219668,0.68,138.61,138.58,7.21595805]
[1765203220240,0.68,138.61,138.58,18.03191739]
[1765203220440,0.68,138.63,138.59,3.95197597]
[1765203220647,0.68,138.62,138.59,3.60197597]
[1765203220841,0.68,138.62,138.59,25.26028012]
[1765203221149,0.68,138.62,138.6,7.21500721]
[1765203223452,0.68,138.62,138.59,28.87383196]
[1765203223847,0.68,138.66,138.61,3.60197597]
[1765203224050,0.68,138.66,138.63,3.60197597]
[1765203224859,0.68,138.66,138.63,25.2540275]
[1765203225057,0.68,138.66,138.63,21.65205153]
[1765203225247,0.68,138.66,138.62,3.60197597]
[1765203225448,0.68,138.66,138.63,7.21344586]
[1765203226176,0.68,138.66,138.63,28.86549739]
[1765203227172,0.68,138.66,138.63,31.17440173]
[1765203228576,7.21099739,138.68,138.63,49.55801638]
[1765203228780,0.68,138.67,138.63,27.90596485]
[1765203229078,0.68,138.67,138.64,18.61776834]
[1765203229378,0.68,138.67,138.65,7.21240533]
[1765203232086,0.65,138.68,138.65,9.52130967]
[1765203232457,0.65,138.68,138.65,17.42130967]
[1765203235178,0.65,138.69,138.66,10.20890434]
[1765203235688,0.65,138.69,138.66,15.11141915]
[1765203235854,0.65,138.69,138.66,25.32032349]
[1765203236761,0.65,138.71,138.67,2.30890434]
[1765203236984,0.65,138.71,138.68,10.20890434]
[1765203237181,0.65,138.72,138.68,10.55890434]
[1765203237463,0.65,138.72,138.68,32.20314516]
[1765203237876,0.65,138.72,138.69,7.21032518]
[1765203238989,7.8588439,138.72,138.69,7.21032518]
[1765203239170,0.65,138.71,138.68,15.11064528]
[1765203240286,7.85937398,138.71,138.68,22.31948918]
[1765203240477,7.85937398,138.71,138.68,7.2088439]
[1765203240787,0.65,138.7,138.67,15.11118718]
[1765203242282,0.65,138.7,138.67,7.21118718]
[1765203242480,0.65,138.7,138.67,37.75010897]
[1765203243490,0.65,138.7,138.67,17.42009152]
[1765203243884,0.65,138.7,138.67,15.11118718]
[1765203244270,0.65,138.7,138.67,7.21118718]
[1765203245405,7.85991031,138.7,138.66,15.1116992]
[1765203245694,7.85991031,138.7,138.66,7.2116992]
[1765203245998,0.72,138.69,138.66,7.2116992]
[1765203246895,0.72,138.69,138.65,7.21240533]
[1765203247395,0.72,138.69,138.65,9.52130967]
[1765203250799,0.72,138.69,138.65,27.55232301]
[1765203251299,0.72,138.69,138.66,2.30890434]
[1765203253187,0.72,138.7,138.67,7.21136511]
[1765203253387,0.72,138.7,138.67,27.54868222]
[1765203255001,0.72,138.7,138.67,25.23977788]
[1765203260307,0.72,138.7,138.67,7.21136511]
[1765203263077,7.20952936,138.71,138.67,7.21136511]
[1765203263283,0.67,138.73,138.69,2.30890434]
[1765203263508,0.67,138.73,138.7,2.30890434]
[1765203263689,0.67,138.73,138.7,9.51843198]
[1765203264502,0.67,138.73,138.71,2.30890434]
[1765203264705,0.67,138.74,138.71,2.30890434]
[1765203265684,0.67,138.74,138.71,9.51794193]
[1765203273812,0.67,138.74,138.71,7.20903759]
[1765203274291,7.87777191,138.74,138.71,7.20903759]
[1765203274719,0.67,138.73,138.71,7.20903759]
[1765203275912,28.22493855,138.77,138.71,9.51794193]
[1765203276123,0.67,138.73,138.71,9.51794193]
[1765203277123,0.67,138.75,138.72,2.65890434]
[1765203277417,7.20639034,138.77,138.73,2.30890434]
[1765203277594,0.67,138.76,138.73,2.30890434]
[1765203277994,0.67,138.76,138.72,18.61776834]
[1765203278229,0.67,138.76,138.72,2.30890434]
[1765203279432,0.67,138.76,138.73,7.20824623]
[1765203281806,0.67,138.76,138.73,9.51715057]
[1765203282326,0.67,138.78,138.75,2.30890434]
[1765203282711,0.67,138.78,138.75,9.51586986]
[1765203286730,16.308864,138.82,138.76,0.35]
[1765203286922,0.1,138.83,138.81,3.60118019]
[1765203287118,0.1,138.83,138.81,10.80485393]
[1765203287332,0.77,138.83,138.81,7.20367374]
[1765203287904,0.77,138.83,138.81,18.00668738]
[1765203288321,0.77,138.83,138.81,21.60786757]
[1765203289449,0.1,138.83,138.82,3.60118019]
[1765203289735,0.1,138.88,138.83,25.11880892]
[1765203289934,0.1,138.88,138.84,7.9]
[1765203290235,0.1,138.88,138.84,8.15]
[1765203290427,0.77,138.88,138.84,8.15]
[1765203290733,0.1,138.88,138.87,3.60118019]
[1765203291034,0.77,138.88,138.86,7.9]
[1765203291255,0.77,138.88,138.85,2.88236353]
[1765203291538,0.1,138.88,138.87,3.60118019]
[1765203291952,0.1,138.88,138.86,16.01098125]
[1765203294037,0.66,138.87,138.86,7.20103633]
[1765203294530,0.1,138.88,138.86,7.20103633]
[1765203294731,0.76,138.88,138.86,7.20103633]
[1765203298822,0.76,138.88,138.85,7.9]
[1765203299740,0.76,138.88,138.85,15.10191441]
[1765203300316,3.60118019,138.86,138.82,7.20340435]
[1765203300532,3.60118019,138.85,138.83,7.20300526]
[1765203300737,3.60118019,138.86,138.83,7.20300526]
[1765203300935,3.60118019,138.86,138.83,7.20304566]
[1765203301128,4.26118019,138.85,138.82,7.20339992]
[1765203301535,0.66,138.84,138.83,7.20289873]
[1765203302329,0.66,138.84,138.81,25.21432173]
[1765203302727,0.66,138.86,138.82,0.25]
[1765203302928,0.66,138.86,138.81,28.81550192]
[1765203303244,0.66,138.86,138.81,29.06550192]
[1765203304328,0.66,138.86,138.82,12.41112511]
[1765203304530,0.76,138.88,138.84,12.41112511]
[1765203304728,0.1,138.88,138.85,3.60118019]
[1765203304923,0.76,138.88,138.85,3.60118019]
[1765203305247,0.76,138.88,138.84,12.41112511]
[1765203305948,0.76,138.88,138.85,7.20201656]
[1765203308544,11.5618408,138.88,138.84,7.20253529]
[1765203308746,3.60118019,138.87,138.82,16.308864]
[1765203308958,4.31118019,138.87,138.82,24.188864]
[1765203309252,0.71,138.86,138.82,24.188864]
[1765203309639,0.71,138.86,138.83,7.20290656]
[1765203309831,0.71,138.86,138.83,25.21054179]
[1765203311423,4.31118019,138.86,138.82,15.08335869]
[1765203311956,0.71,138.85,138.82,7.20335869]
[1765203312453,0.71,138.85,138.81,25.21399993]
[1765203315456,0.71,138.85,138.81,7.20409192]
[1765203315457,4.31118019,138.85,138.81,7.20409192]
[1765203315632,0.71,138.85,138.81,7.20409192]
[1765203315945,10.80284648,138.86,138.81,7.20409192]
[1765203315946,0.71,138.84,138.81,7.20409192]
[1765203316831,4.31118019,138.84,138.81,7.20409192]
[1765203317154,0.71,138.84,138.81,7.20409192]
[1765203317457,0.71,138.83,138.81,7.20409192]
[1765203318361,0.71,138.84,138.81,7.20409192]
[1765203318958,0.71,138.84,138.81,25.21432173]
[1765203319170,0.71,138.84,138.81,25.46432173]
[1765203319345,7.20118044,138.87,138.81,25.46432173]
[1765203319346,0.71,138.86,138.83,7.20305409]
[1765203320459,0.71,138.86,138.82,25.211926]
[1765203320965,0.71,138.86,138.82,33.091926]
[1765203325658,11.51272516,138.86,138.82,33.091926]
[1765203325846,3.60118019,138.85,138.82,7.88]
[1765203326054,4.32118019,138.85,138.81,7.20391066]
[1765203326243,0.72,138.84,138.81,7.20391066]
[1765203326760,0.1,138.88,138.81,25.21414047]
[1765203326959,0.72,138.87,138.82,20.54112511]
[1765203327164,0.82,138.88,138.83,3.60118019]
[1765203327470,0.82,138.88,138.84,7.88]
[1765203328144,0.82,138.88,138.85,7.20201656]
[1765203331272,0.82,138.88,138.84,7.20253529]
[1765203332678,0.82,138.88,138.84,15.08253529]
[1765203333354,11.62174363,138.88,138.84,15.08253529]
[1765203333862,3.60118019,138.85,138.81,7.20372806]
[1765203334177,3.60118019,138.84,138.81,7.20372806]
[1765203334662,0.72,138.83,138.81,7.20372806]
[1765203335555,0.72,138.83,138.8,7.20461095]
[1765203339568,0.72,138.84,138.8,29.06731851]
[1765203340076,0.72,138.84,138.8,25.46613832]
[1765203340883,0.72,138.84,138.8,25.21613832]
[1765203341654,3.60118019,138.81,138.77,5.99268981]
[1765203341858,15.80255242,138.84,138.75,73.43261452]
[1765203341859,3.60118019,138.79,138.76,7.2061941]
[1765203342069,3.60118019,138.78,138.74,15.08733711]
[1765203342379,0.72,138.78,138.74,15.33733711]
[1765203342581,0.72,138.77,138.74,15.08733711]
[1765203343285,0.72,138.77,138.74,7.20733711]
[1765203344259,11.52737618,138.77,138.73,7.20806719]
[1765203344674,0.72,138.76,138.73,7.20806719]
[1765203345256,0.72,138.76,138.72,7.88]
[1765203345586,0.72,138.76,138.73,7.20824623]
[1765203346386,3.60118019,138.78,138.73,7.45824623]
[1765203346589,19.29004419,138.8,138.73,7.45824623]
[1765203346590,0.72,138.77,138.73,7.45824623]
[1765203347087,0.72,138.77,138.73,25.22886181]
[1765203350267,10.23198044,138.77,138.73,7.20824623]
[1765203350668,0.72,138.76,138.73,7.20824623]
[1765203350877,3.02573805,138.76,138.73,7.20824623]
[1765203351392,0.66,138.75,138.73,7.20824623]
[1765203352480,0.66,138.75,138.72,7.20857752]
[1765203352988,2.30573805,138.74,138.71,7.20913554]
[1765203353168,2.30573805,138.74,138.7,7.40972081]
[1765203353369,0.66,138.73,138.7,7.40972081]
[1765203353973,2.96573805,138.73,138.7,0.2]
[1765203354175,2.30573805,138.72,138.7,0.2]
[1765203354374,2.96573805,138.72,138.7,0.2]
[1765203354588,0.66,138.71,138.7,0.2]
[1765203355989,2.30573805,138.73,138.7,0.2]
[1765203356197,0.66,138.71,138.7,0.2]
[1765203357612,8.80994492,138.79,138.7,7.4094309]
[1765203357916,2.30573805,138.73,138.7,0.2]
[1765203358399,2.30573805,138.71,138.7,0.2]
[1765203358776,0.66,138.71,138.7,0.2]
[1765203359176,10.87573805,138.73,138.7,0.2]
[1765203359410,0.67,138.72,138.7,0.2]
[1765203359601,10.18451057,138.72,138.7,0.2]
[1765203360107,0.67,138.71,138.7,0.2]
[1765203360677,42.22804628,138.75,138.7,7.40952687]
[1765203360678,0.67,138.74,138.7,7.40952687]
[1765203361793,10.18349793,138.74,138.7,7.40952687]
[1765203362197,0.67,138.73,138.7,7.40952687]
[1765203362998,33.72202925,138.75,138.7,7.65952687]
[1765203363202,24.208864,138.75,138.7,7.65952687]
[1765203363383,0.67,138.74,138.7,25.6840402]
[1765203363579,0.67,138.74,138.7,7.65952687]
[1765203364289,0.67,138.74,138.7,7.40952687]
[1765203364782,2.97573805,138.74,138.7,7.40952687]
[1765203365316,2.30573805,138.72,138.7,0.2]
[1765203365681,0.67,138.71,138.7,0.2]
[1765203367187,2.97573805,138.71,138.7,0.2]
[1765203367489,0.67,138.71,138.7,0.2]
[1765203368581,2.30573805,138.74,138.7,7.40975771]
[1765203368911,0.67,138.73,138.7,7.40975771]
[1765203369116,33.72198915,138.75,138.7,7.40975771]
[1765203369304,9.51192432,138.77,138.71,9.05994492]
[1765203369500,10.18192432,138.77,138.71,9.05994492]
[1765203369690,0.67,138.76,138.71,9.05994492]
[1765203370414,0.67,138.76,138.72,7.20876585]
[1765203372119,2.97573805,138.76,138.72,7.20876585]
[1765203372419,2.30573805,138.74,138.71,7.20915251]
[1765203372722,23.51523784,138.77,138.71,7.45922499]
[1765203373019,25.82097589,138.77,138.71,7.45922499]
[1765203373315,7.9,138.78,138.71,7.45922499]
[1765203373316,7.87523918,138.79,138.73,8.80994492]
[1765203373617,0.67,138.79,138.73,8.80994492]
[1765203373910,0.67,138.79,138.75,7.2072072]
[1765203373911,7.87546173,138.79,138.75,7.2072072]
[1765203374082,0.67,138.78,138.75,7.2072072]
[1765203376199,2.30573805,138.77,138.72,78.208864]
[1765203376508,2.30573805,138.77,138.72,16.308864]
[1765203376806,0.67,138.76,138.72,16.308864]
[1765203377032,2.30573805,138.75,138.7,8.1]
[1765203377198,2.97573805,138.76,138.7,24.408864]
[1765203377396,0.67,138.75,138.7,24.408864]
[1765203378515,7.87726115,138.75,138.71,7.20928555]
[1765203378815,7.87726115,138.75,138.7,23.71846945]
[1765203378816,2.30573805,138.74,138.7,23.71846945]
[1765203379023,2.30573805,138.73,138.7,0.2]
[1765203379219,2.30573805,138.72,138.7,0.2]
[1765203379411,2.97573805,138.72,138.7,0.2]
[1765203379629,2.97573805,138.71,138.7,0.2]
[1765203380300,10.1850236,138.71,138.7,0.2]
[1765203380501,0.67,138.71,138.7,0.2]
[1765203382013,2.97573805,138.71,138.7,0.2]
[1765203383017,10.1850236,138.71,138.7,0.2]
[1765203383624,7.87928555,138.71,138.7,0.2]
[1765203384914,0.67,138.71,138.7,0.2]
[1765203385906,7.87928555,138.71,138.7,0.2]
[1765203386303,10.1850236,138.71,138.7,0.2]
[1765203389627,7.87928555,138.71,138.7,0.2]
[1765203389830,15.77928555,138.71,138.7,0.2]
[1765203390009,7.87928555,138.71,138.7,0.2]
[1765203390209,15.77928555,138.71,138.7,0.2]
[1765203391838,7.87928555,138.71,138.7,0.2]
[1765203392010,16.308864,138.69,138.68,0.2]
[1765203392215,18.61460205,138.69,138.68,0.2]
[1765203392521,19.32460205,138.69,138.68,0.2]
[1765203393106,17.018864,138.69,138.68,0.2]
[1765203393511,0.71,138.69,138.68,0.2]
[1765203393706,7.92032518,138.69,138.68,0.2]
[1765203396851,7.9,138.71,138.68,0.2]
[1765203397139,23.51779037,138.72,138.68,7.8606343]
[1765203397347,24.22779037,138.72,138.68,7.8606343]
[1765203402139,3.01573805,138.71,138.68,0.2]
[1765203402342,2.30573805,138.7,138.68,0.2]
[1765203402523,10.91573805,138.7,138.68,0.2]
[1765203402842,3.01573805,138.69,138.68,0.2]
[1765203403941,10.22606323,138.69,138.68,0.2]
[1765203406647,7.92032518,138.69,138.68,0.2]
[1765203407045,15.10997962,138.7,138.68,0.2]
[1765203407224,15.81997962,138.7,138.68,0.2]
[1765203408238,15.10997962,138.7,138.68,0.2]
[1765203408748,15.81997962,138.7,138.68,0.2]
[1765203410748,7.91997962,138.7,138.68,0.2]
[1765203412547,15.79950119,138.71,138.68,0.2]
[1765203415123,18.02000481,138.74,138.68,7.41068778]
[1765203415448,3.60674815,138.72,138.68,0.2]
[1765203415648,3.60674815,138.7,138.68,0.2]
[1765203416153,0.69,138.69,138.68,0.2]
[1765203421250,11.50707333,138.69,138.68,0.2]
[1765203422429,19.40707333,138.69,138.68,0.2]
[1765203429536,44.52588225,138.69,138.68,0.2]
[1765203435868,35.71593733,138.69,138.68,0.2]
[1765203436859,16.308864,138.66,138.58,10.24218176]
[1765203437044,8.80994492,138.68,138.58,0.45]
[1765203437045,3.60674815,138.62,138.58,0.45]
[1765203437247,7.21448668,138.61,138.58,0.45]
[1765203437864,7.21448668,138.61,138.58,7.66596983]
[1765203438065,7.9,138.62,138.59,7.86545075]
[1765203438578,7.9,138.62,138.6,0.45]
[1765203438759,15.11405194,138.62,138.59,0.2]
[1765203438955,19.42080009,138.62,138.59,0.2]
[1765203439157,15.81405194,138.62,138.59,0.2]
[1765203440075,19.42080009,138.62,138.59,0.2]
[1765203440371,0.7,138.61,138.59,0.2]
[1765203440574,36.75571568,138.62,138.59,0.2]
[1765203440575,37.45571568,138.62,138.59,0.2]
[1765203441358,3.60674815,138.61,138.59,0.2]
[1765203442176,4.32674815,138.61,138.59,0.2]
[1765203443262,7.21500721,138.6,138.59,0.2]
[1765203444475,19.44175536,138.6,138.59,0.2]
[1765203445882,15.11500721,138.6,138.59,0.2]
[1765203446579,7.9,138.6,138.59,0.2]
[1765203446776,7.9,138.6,138.59,0.65]
[1765203446981,7.21470048,138.61,138.59,0.2]
[1765203447194,7.21470048,138.61,138.59,0.65]
[1765203447356,7.21470048,138.61,138.59,0.2]
[1765203449562,7.21470048,138.61,138.59,0.65]
[1765203449765,7.21470048,138.61,138.59,0.2]
[1765203450092,7.21470048,138.61,138.59,0.65]
[1765203450323,7.21470048,138.61,138.59,0.2]
[1765203450873,12.22674815,138.62,138.59,0.65]
[1765203451066,15.11413405,138.62,138.59,0.65]
[1765203451475,15.83413405,138.62,138.59,0.2]
[1765203452194,15.83413405,138.62,138.59,0.65]
[1765203452485,19.4408822,138.62,138.59,0.2]
[1765203454112,7.9,138.62,138.6,0.45]
[1765203454398,7.21363721,138.63,138.6,0.45]
[1765203454902,0.72,138.62,138.59,0.2]
[1765203455102,7.9,138.64,138.59,0.2]
[1765203455283,7.21291558,138.65,138.61,3.60674815]
[1765203455477,7.21291558,138.65,138.62,0.45]
[1765203456177,7.93291558,138.65,138.62,0.45]
[1765203457002,7.93291558,138.65,138.61,7.21419416]
[1765203457206,0.72,138.64,138.6,7.21470857]
[1765203457387,0.72,138.64,138.61,0.45]
[1765203458176,0.72,138.64,138.6,7.66470857]
[1765203458376,0.72,138.64,138.61,0.45]
[1765203458694,7.9332868,138.64,138.61,0.45]